fUST/lending_fUST_20251206
["ID","MTS","AMOUNT","RATE_DAILY","PERIOD"]
[396492908,1765001292117,151.13,0.000105,2]
[396492909,1765001292372,151.13,0.000107,2]
[396492910,1765001293586,-6179.33,0.00010888,2]
[396492911,1765001293680,-10000.01,0.00010888,2]
[396492912,1765001293879,-10000.01,0.00010888,2]
[396492913,1765001293943,-513.18896065,0.00010888,2]
[396492914,1765001293997,-10000.01,0.00010888,2]
[396492915,1765001294047,-10000.01,0.00010888,2]
[396492916,1765001294162,-10000.01,0.00010888,2]
[396492917,1765001294300,-10000.01,0.00010888,2]
[396492918,1765001294396,-10000.01,0.00010888,2]
[396492919,1765001294542,-10000.01,0.00010888,2]
[396492920,1765001294656,-10000.01,0.00010888,2]
[396492921,1765001295990,-339.59656162,0.00010888,2]
[396492922,1765001298087,-650.31,0.00010888,2]
[396492923,1765001300240,300.0,0.0001085,2]
[396492924,1765001301278,-209.45300525,0.00010888,2]
[396492925,1765001302658,-500.0,0.00010888,2]
[396492926,1765001304909,-212.34556297,0.00010888,2]
[396492927,1765001307170,-209.44642954,0.00010888,2]
[396492928,1765001308767,4664.29151907,0.0001085,2]
[396492929,1765001309246,-281.90283302,0.00010888,2]
[396492930,1765001311854,-217.22226743,0.00010888,2]
[396492931,1765001313475,-250.93228489,0.00010888,2]
[396492932,1765001315927,-281.43535408,0.00010887,2]
[396492933,1765001316677,5000.0,0.0001085,2]
[396492934,1765001318698,-218.56464592,0.00010887,2]
[396492935,1765001318722,-221.977298,0.00010887,2]
[396492936,1765001320246,-131.26807684,0.00010887,2]
[396492937,1765001320274,-128.59055409,0.00010888,2]
[396492938,1765001322010,-328.26813632,0.00010888,2]
[396492939,1765001323615,-170.11603679,0.00010888,2]
[396492940,1765001324764,5000.0,0.0001085,2]
[396492941,1765001325760,-288.01848471,0.00010888,2]
[396492942,1765001327355,-5335.71848093,0.00010888,2]
[396492943,1765001327462,-327.89807133,0.00010888,2]
[396492944,1765001327526,-10000.01,0.00010888,2]
[396492945,1765001327644,-10000.01,0.00010888,2]
[396492946,1765001330788,-309.55841584,0.00010888,2]
[396492947,1765001332937,-713.32503825,0.00010888,2]
[396492948,1765001333259,-561.92822145,0.00010888,2]
[396492949,1765001333285,-8876.1535571,0.00010888,2]
[396492950,1765001335555,-151.13,0.000109,2]
[396492951,1765001335576,-68.7840731,0.00010935,2]
[396492952,1765001338472,-300.82327806,0.00010935,2]
[396492953,1765001340527,5000.0,0.00010888,2]
[396492954,1765001344593,-51.07264884,0.00010935,2]
[396492955,1765001344617,-291.77473958,0.00010935,2]
[396492956,1765001347770,-128.90526042,0.00010935,2]
[396492957,1765001347796,-122.763079,0.00010935,2]
[396492958,1765001348625,5000.0,0.00010888,2]
[396492959,1765001350100,0.01,8.101e-05,2]
[396492960,1765001350145,149.99,8.101e-05,2]
[396492961,1765001350545,229.23,8.837e-05,2]
[396492962,1765001351046,343.84,9.574e-05,2]
[396492963,1765001351929,458.45,0.0001031,2]
[396492964,1765001353093,250.0,0.00013096,3]
[396492965,1765001353386,250.0,9.999e-05,3]
[396492966,1765001354045,151.7,9.8e-05,2]
[396492967,1765001354368,151.7,0.0001,2]
[396492968,1765001354694,151.7,0.000102,2]
[396492969,1765001354993,151.7,0.000105,2]
[396492970,1765001355271,151.7,0.000107,2]
[396492971,1765001363894,5000.0,0.00010888,2]
[396492972,1765001371743,3060.0,0.00010888,2]
[396492973,1765001376663,-278.57856392,0.00010888,2]
[396492975,1765001378721,-487.14824491,0.00010888,2]
[396492976,1765001381058,-180.77669462,0.00010888,2]
[396492977,1765001384375,-209.22330538,0.00010888,2]
[396492978,1765001387043,5000.0,0.00010855,2]
[396492979,1765001387594,-257.0,0.00010888,2]
[396492980,1765001389052,-300.01183225,0.00010888,2]
[396492981,1765001390545,-180.83073419,0.00010888,2]
[396492982,1765001407557,151.7,9.8e-05,2]
[396492983,1765001407862,151.7,0.000101,2]
[396492984,1765001408150,151.7,0.000104,2]
[396492985,1765001409246,151.7,0.000107,2]
[396492986,1765001409672,4393.21,0.00010855,2]
[396492987,1765001409721,606.79,0.00010855,2]
[396492994,1765001431996,150.0,8.101e-05,2]
[396492995,1765001432070,-46.43062473,0.00010888,2]
[396492996,1765001432079,-239.0,0.00010888,2]
[396492997,1765001432089,-40.876921,0.00010935,2]
[396492998,1765001432099,-300.0,0.00010985,2]
[396493000,1765001432109,-236.53309503,0.00010985,2]
[396493014,1765001432404,272.82,8.838e-05,2]
[396493015,1765001432475,5000.0,0.00010855,2]
[396493026,1765001432830,409.23,9.574e-05,2]
[396493027,1765001433443,545.64,0.00010311,2]
[396493042,1765001438114,-63.46690497,0.00010985,2]
[396493043,1765001438124,-300.0,0.00010985,2]
[396493044,1765001438133,-300.0,0.00010985,2]
[396493045,1765001438144,-300.0,0.00010985,2]
[396493046,1765001438154,-519.62235001,0.00010985,2]
[396493047,1765001438172,-680.37764999,0.00010985,2]
[396493048,1765001438182,-500.0,0.00010986,2]
[396493049,1765001438191,-500.0,0.00010986,2]
[396493050,1765001438200,-500.0,0.00010986,2]
[396493051,1765001438210,-500.0,0.00010986,2]
[396493052,1765001438219,-500.0,0.00010986,2]
[396493053,1765001438228,-500.0,0.00010986,2]
[396493054,1765001438238,-500.0,0.00010986,2]
[396493055,1765001438247,-500.0,0.00010986,2]
[396493056,1765001438256,-500.0,0.00010986,2]
[396493057,1765001438266,-3377.213703,0.00010986,2]
[396493083,1765001440243,3015.53,0.00010855,2]
[396493085,1765001440290,1984.47,0.00010855,2]
[396493128,1765001440699,-3e-08,0.00010986,2]
[396493131,1765001440774,-809.29629697,0.00010986,2]
[396493133,1765001440784,-500.0,0.00010986,2]
[396493135,1765001440793,-1532.03,0.00010986,2]
[396493137,1765001440802,-500.0,0.00010986,2]
[396493139,1765001440811,-1492.06,0.00010986,2]
[396493141,1765001440820,-881.01,0.00010986,2]
[396493143,1765001440830,-500.0,0.00010986,2]
[396493145,1765001440839,-500.0,0.00010986,2]
[396493147,1765001440848,-500.0,0.00010986,2]
[396493149,1765001440857,-500.0,0.00010986,2]
[396493151,1765001440866,-500.0,0.00010986,2]
[396493152,1765001440875,-8400.13,0.00010986,2]
[396493153,1765001440884,-8514.66860841,0.00010986,2]
[396493154,1765001440896,-495.62,0.00010986,2]
[396493168,1765001443287,-487.52139159,0.00010986,2]
[396493169,1765001443297,-312.47860841,0.00010986,2]
[396493171,1765001443458,-5129.64139159,0.00010986,2]
[396493172,1765001443469,-500.0,0.00010986,2]
[396493173,1765001443479,-566.76,0.00010986,2]
[396493174,1765001443488,-500.0,0.00010986,2]
[396493175,1765001443497,-327.98316281,0.00010986,2]
[396493205,1765001446203,-172.01683719,0.00010986,2]
[396493206,1765001446213,-513.28190611,0.00010986,2]
[396493215,1765001451146,-559.82432427,0.00010888,2]
[396493216,1765001452694,-227.64723271,0.00010888,2]
[396493217,1765001454271,-261.60502053,0.00010888,2]
[396493218,1765001455469,5000.0,0.00010855,2]
[396493219,1765001455910,-367.3323905,0.00010888,2]
[396493220,1765001458081,-238.95557108,0.00010888,2]
[396493221,1765001460567,-155.76528857,0.00010888,2]
[396493222,1765001462687,-259.52644548,0.00010887,2]
[396493223,1765001463768,3015.54,0.00010855,2]
[396493224,1765001463810,1984.46,0.00010855,2]
[396493225,1765001464836,-40.47355452,0.00010887,2]
[396493226,1765001464862,-407.9182659,0.00010888,2]
[396493227,1765001466903,-212.74402909,0.00010888,2]
[396493228,1765001469526,-403.31134297,0.00010888,2]
[396493229,1765001471732,-454.16203179,0.00010888,2]
[396493230,1765001473794,153.4,9.8e-05,2]
[396493231,1765001474186,153.4,0.000101,2]
[396493232,1765001474374,-412.69492243,0.00010888,2]
[396493233,1765001474472,153.4,0.000105,2]
[396493234,1765001476940,-272.35276729,0.00010888,2]
[396493235,1765001479010,-235.67676033,0.00010888,2]
[396493236,1765001480507,5000.0,0.00010855,2]
[396493237,1765001480535,-278.28527676,0.00010888,2]
[396493238,1765001485083,-181.20625911,0.00010888,2]
[396493239,1765001486625,-162.62681283,0.00010888,2]
[396493240,1765001488278,-158.30534449,0.00010888,2]
[396493241,1765001488329,5000.0,0.00010855,2]
[396493242,1765001491042,-290.97367503,0.00010888,2]
[396493243,1765001493182,-354.55355527,0.00010888,2]
[396493244,1765001494642,-300.0,0.00010888,2]
[396493245,1765001499441,-545.40940357,0.00010888,2]
[396493246,1765001502100,-164.75396792,0.00010888,2]
[396493247,1765001503746,-207.63960312,0.00010888,2]
[396493248,1765001505025,5000.0,0.00010855,2]
[396493249,1765001506095,-270.81036288,0.00010888,2]
[396493250,1765001509072,-161.36012214,0.00010888,2]
[396493251,1765001510397,-268.9381939,0.00010888,2]
[396493252,1765001512569,166.86,8.19e-05,2]
[396493253,1765001512798,1875.42460507,0.00010855,2]
[396493254,1765001512977,333.71,8.934e-05,2]
[396493255,1765001513124,-151.00865929,0.00010888,2]
[396493256,1765001513373,500.57,9.679e-05,2]
[396493257,1765001513787,667.42,0.00010423,2]
[396493258,1765001514609,-155.76528857,0.00010888,2]
[396493259,1765001518622,-248.33166061,0.00010888,2]
[396493260,1765001527001,153.4,9.8e-05,2]
[396493261,1765001527279,153.4,0.000103,2]
[396493262,1765001527565,153.4,0.000108,2]
[396493263,1765001528378,995.82539493,0.00010855,2]
[396493264,1765001528417,4004.17460507,0.00010855,2]
[396493265,1765001536682,5000.0,0.00010855,2]
[396493266,1765001551854,995.83539493,0.00010855,2]
[396493267,1765001551898,4004.16460507,0.00010855,2]
[396493268,1765001575144,5000.0,0.00010855,2]
[396493269,1765001585092,153.41,9.8e-05,2]
[396493270,1765001585383,153.41,0.000106,2]
[396493271,1765001595014,161.44,8.1e-05,2]
[396493272,1765001595443,322.88,8.836e-05,2]
[396493273,1765001595847,204.70539493,9.572e-05,2]
[396493274,1765001595892,279.61460507,9.572e-05,2]
[396493275,1765001596246,645.76,0.00010309,2]
[396493276,1765001598442,5000.0,0.00010855,2]
[396493277,1765001620887,4074.63539493,0.00010855,2]
[396493278,1765001620932,925.36460507,0.00010855,2]
[396493279,1765001643761,5000.0,0.00010855,2]
[396493280,1765001644565,153.4,9.8e-05,2]
[396493281,1765001666648,3921.24539493,0.00010855,2]
[396493282,1765001666690,1078.75460507,0.00010855,2]
[396493283,1765001675753,153.65,8.177e-05,2]
[396493284,1765001676158,307.3,8.92e-05,2]
[396493285,1765001676557,460.95,9.663e-05,2]
[396493286,1765001676982,614.6,0.00010407,2]
[396493287,1765001689696,5000.0,0.00010855,2]
[396493288,1765001704718,153.41,0.0001,2]
[396493289,1765001713840,5000.0,0.00010855,2]
[396493290,1765001715296,-250.93228489,0.00010858,2]
[396493291,1765001715322,-300.0,0.00010887,2]
[396493292,1765001715347,-300.0,0.00010887,2]
[396493293,1765001715373,-300.0,0.00010887,2]
[396493294,1765001715400,-1200.0,0.00010887,2]
[396493295,1765001715518,-20298.13543022,0.00010888,2]
[396493296,1765001736211,4846.6,0.00010855,2]
[396493297,1765001736255,153.4,0.00010855,2]
[396493298,1765001759545,5000.0,0.00010855,2]
[396493299,1765001761864,150.0,8.089e-05,2]
[396493300,1765001762253,291.1,8.825e-05,2]
[396493301,1765001762674,436.64,9.56e-05,2]
[396493302,1765001763561,582.19,0.00010295,2]
[396493303,1765001763996,153.4,9.8e-05,2]
[396493304,1765001782404,3233.28,0.00010855,2]
[396493305,1765001782449,1766.72,0.00010855,2]
[396493306,1765001791369,-500.0,0.00010887,2]
[396493307,1765001791397,-500.0,0.00010887,2]
[396493308,1765001791428,-230.11774223,0.00010887,2]
[396493309,1765001791456,-174.6185406,0.00010887,2]
[396493310,1765001791833,-24190.52743434,0.00010888,2]
[396493311,1765001804453,472.6,0.0001,2]
[396493312,1765001805347,472.6,0.0001,2]
[396493313,1765001806223,472.6,0.0001,2]
[396493314,1765001806277,5000.0,0.00010855,2]
[396493315,1765001807095,472.6,0.0001,2]
[396493316,1765001807970,472.6,0.0001,2]
[396493317,1765001808860,472.6,0.0001,2]
[396493319,1765001829677,397.69,0.00010855,2]
[396493320,1765001829720,4602.31,0.00010855,2]
[396493321,1765001845383,150.0,8.1e-05,2]
[396493322,1765001845821,276.84,8.836e-05,2]
[396493323,1765001846440,415.26,9.572e-05,2]
[396493324,1765001846642,553.68,0.00010309,2]
[396493325,1765001853280,4001.92,0.00010855,2]
[396493326,1765001853324,998.08,0.00010855,2]
[396493327,1765001875750,5000.0,0.00010855,2]
[396493328,1765001884437,191.14248682,0.00010593,2]
[396493329,1765001898271,3810.78751318,0.00010855,2]
[396493330,1765001898317,1189.21248682,0.00010855,2]
[396493331,1765001922071,5000.0,0.00010855,2]
[396493332,1765001933542,150.0,8.096e-05,2]
[396493333,1765001933957,241.31,8.832e-05,2]
[396493334,1765001934390,361.97,9.568e-05,2]
[396493335,1765001934791,482.63,0.00010304,2]
[396493336,1765001945009,2574.88751318,0.00010855,2]
[396493337,1765001945054,1031.82528566,0.00010855,2]
[396493341,1765002014439,150.0,8.092e-05,2]
[396493342,1765002014853,209.85,8.828e-05,2]
[396493343,1765002015281,314.78,9.563e-05,2]
[396493344,1765002015736,419.71,0.00010299,2]
[396493346,1765002094791,150.0,8.092e-05,2]
[396493347,1765002095175,182.0,8.828e-05,2]
[396493348,1765002095598,273.0,9.564e-05,2]
[396493349,1765002096194,364.0,0.00010299,2]
[396493351,1765002173886,150.0,8.094e-05,2]
[396493352,1765002174291,157.33,8.83e-05,2]
[396493353,1765002174681,236.0,9.566e-05,2]
[396493354,1765002175126,314.66,0.00010302,2]
[396493355,1765002256674,150.0,8.093e-05,2]
[396493356,1765002257058,150.0,8.829e-05,2]
[396493357,1765002257459,203.24,9.565e-05,2]
[396493358,1765002257904,270.99,0.00010301,2]
[396493361,1765002324137,7398.79,0.0001002,2]
[396493362,1765002324188,10000.01,0.0001002,2]
[396493363,1765002324240,10000.01,0.0001002,2]
[396493364,1765002324291,7988.4239764,0.0001002,2]
[396493365,1765002335009,150.0,8.098e-05,2]
[396493366,1765002335414,150.0,8.834e-05,2]
[396493367,1765002336526,173.68,9.57e-05,2]
[396493368,1765002336858,231.57,0.00010307,2]
[396493376,1765002414183,150.0,8.101e-05,2]
[396493377,1765002414598,150.0,8.838e-05,2]
[396493378,1765002415022,150.0,9.574e-05,2]
[396493379,1765002415442,195.67,0.0001031,2]
[396493380,1765002464428,9354.34,0.00010788,2]
[396493381,1765002464487,10000.01,0.00010788,2]
[396493382,1765002464542,10000.01,0.00010788,2]
[396493383,1765002464597,10000.01,0.00010788,2]
[396493384,1765002464630,208810.79432427,0.00010788,2]
[396493385,1765002479185,4781.90283302,0.0001085,2]
[396493387,1765002492185,150.0,8.451e-05,2]
[396493388,1765002492436,150.0,9.219e-05,2]
[396493389,1765002492842,150.0,9.988e-05,2]
[396493390,1765002493300,162.8,0.00010756,2]
[396493391,1765002546836,250.0,0.00013095,3]
[396493392,1765002564079,-293.1823187,0.00010887,2]
[396493393,1765002567473,150.0,8.102e-05,2]
[396493394,1765002567885,150.0,8.839e-05,2]
[396493395,1765002568312,150.0,9.575e-05,2]
[396493396,1765002568744,150.0,0.00010312,2]
[396493425,1765002632264,-239.0,0.00010887,2]
[396493426,1765002632274,-176.26950227,0.00010887,2]
[396493427,1765002632286,-639.15635492,0.00010951,2]
[396493440,1765002638770,-1348.78,0.00010858,2]
[396493441,1765002638794,-6910.34993884,0.00010858,2]
[396493442,1765002638849,-72761.1345582,0.00010858,2]
[396493494,1765002640616,-3233.12680255,0.00010858,2]
[396493495,1765002640951,-0.00307207,0.00010858,2]
[396493496,1765002641298,150.0,8.098e-05,2]
[396493497,1765002641724,150.0,8.834e-05,2]
[396493498,1765002642121,150.0,9.57e-05,2]
[396493499,1765002642541,150.0,0.00010307,2]
[396493511,1765002643540,-5044.21394809,0.00010858,2]
[396493516,1765002647963,-20494.34494848,0.00010858,2]
[396493525,1765002713045,150.0,8.135e-05,2]
[396493526,1765002713946,150.0,8.874e-05,2]
[396493527,1765002714049,-300.0,0.00010857,2]
[396493528,1765002714076,-330.45092802,0.00010858,2]
[396493529,1765002714369,150.0,9.614e-05,2]
[396493530,1765002714801,150.0,0.00010353,2]
[396493531,1765002726144,-461.46577259,0.00010858,2]
[396493532,1765002729041,1100.0,0.000203,120]
[396493533,1765002744293,299.16563133,0.00010858,2]
[396493534,1765002757844,-8528.16466996,0.00010858,2]
[396493535,1765002758445,-10000.01,0.00010858,2]
[396493536,1765002758478,-10000.01,0.00010858,2]
[396493537,1765002758553,-10000.01,0.00010858,2]
[396493538,1765002758622,-10000.01,0.00010858,2]
[396493539,1765002758676,236.42982062,0.00010857,2]
[396493540,1765002759094,-9763.58017938,0.00010858,2]
[396493541,1765002759504,-10000.01,0.00010858,2]
[396493542,1765002759586,-10000.01,0.00010858,2]
[396493543,1765002759648,-10000.01,0.00010858,2]
[396493544,1765002759794,-10000.01,0.00010858,2]
[396493545,1765002759978,500.0,0.00010857,2]
[396493546,1765002760033,500.0,0.00010857,2]
[396493547,1765002760086,500.0,0.00010857,2]
[396493548,1765002760157,500.0,0.00010857,2]
[396493549,1765002760227,431.16036226,0.00010857,2]
[396493550,1765002760467,500.0,0.00010857,2]
[396493551,1765002760514,500.0,0.00010857,2]
[396493552,1765002760568,500.0,0.00010857,2]
[396493553,1765002760628,533.79376395,0.00010857,2]
[396493554,1765002760701,500.0,0.00010857,2]
[396493555,1765002760749,500.0,0.00010857,2]
[396493556,1765002760814,500.0,0.00010857,2]
[396493557,1765002760872,275.59830161,0.00010857,2]
[396493558,1765002760930,500.0,0.00010857,2]
[396493559,1765002760994,500.0,0.00010857,2]
[396493560,1765002761049,500.0,0.00010857,2]
[396493561,1765002761112,500.0,0.00010857,2]
[396493562,1765002761178,500.0,0.00010857,2]
[396493563,1765002761227,500.0,0.00010857,2]
[396493564,1765002761295,500.0,0.00010857,2]
[396493565,1765002761373,500.0,0.00010857,2]
[396493566,1765002761425,500.0,0.00010857,2]
[396493567,1765002761507,593.31259632,0.00010857,2]
[396493568,1765002761575,500.0,0.00010857,2]
[396493569,1765002761657,500.0,0.00010857,2]
[396493570,1765002761729,500.0,0.00010857,2]
[396493573,1765002782558,5000.0,0.0001085,2]
[396493574,1765002783409,150.0,8.4e-05,2]
[396493575,1765002783804,150.0,9.163e-05,2]
[396493576,1765002784689,150.0,9.927e-05,2]
[396493577,1765002785097,150.0,0.00010691,2]
[396493591,1765002805808,5000.0,0.0001085,2]
[396493592,1765002850298,150.0,8.389e-05,2]
[396493601,1765002906250,-242.0,0.00010855,2]
[396493602,1765002908463,-58.0,0.00010855,2]
[396493603,1765002908486,-242.0,0.00010855,2]
[396493608,1765003084404,343.6,0.00010501,2]
[396493609,1765003084669,343.6,0.00010501,2]
[396493610,1765003084962,343.6,0.00010501,2]
[396493611,1765003085122,-231.80387683,0.00010854,2]
[396493612,1765003109916,150.0,8.443e-05,2]
[396493613,1765003178356,-300.0,0.00010854,2]
[396493614,1765003178378,-200.0,0.00010854,2]
[396493615,1765003180846,-253.72317824,0.00010854,2]
[396493616,1765003184847,-152.47933137,0.00010854,2]
[396493617,1765003186371,-235.65124839,0.00010854,2]
[396493618,1765003189053,-156.8170814,0.00010854,2]
[396493784,1765003513089,1000.0,0.0001085,2]
[396493832,1765003600658,666.0,0.0001085,2]
[396493843,1765003632426,8334.01,0.00010754,2]
[396493845,1765003632483,10000.01,0.00010754,2]
[396493846,1765003632532,10000.01,0.00010754,2]
[396493847,1765003632583,10000.01,0.00010754,2]
[396493848,1765003632614,729760.52278974,0.00010754,2]
[396493850,1765003636943,-218.10945629,0.00010754,2]
[396493851,1765003638408,-467.29707534,0.00010754,2]
[396493852,1765003639898,-395.88862555,0.00010754,2]
[396493853,1765003641946,-369.78831431,0.00010754,2]
[396493854,1765003642913,5000.0,0.0001056,2]
[396493855,1765003644010,-459.80584312,0.00010754,2]
[396493859,1765003644692,160.0,5.8e-07,2]
[396493865,1765003645572,-376.89726169,0.00010754,2]
[396493867,1765003645639,160.0,5.8e-07,2]
[396493870,1765003647883,-164.7539679,0.00010754,2]
[396493871,1765003649539,-168.76996166,0.00010754,2]
[396493875,1765003651096,-305.23108715,0.00010754,2]
[396493881,1765003653758,-313.34086356,0.00010754,2]
[396493882,1765003656002,-213.49828434,0.00010754,2]
[396493891,1765003658580,5000.0,0.0001056,2]
[396493892,1765003659970,-202.8023932,0.00010754,2]
[396493893,1765003662670,-218.60633673,0.00010754,2]
[396493894,1765003664181,-396.94592762,0.00010754,2]
[396493895,1765003666955,5000.0,0.0001056,2]
[396493896,1765003667712,-250.1735829,0.00010754,2]
[396493897,1765003670593,-164.53804103,0.00010754,2]
[396493898,1765003673888,-531.6624339,0.00010754,2]
[396493899,1765003682839,5000.0,0.0001056,2]
[396493900,1765003688931,-5000000.0,0.00036499,20]
[396493901,1765003690672,218.09716698,0.0001056,2]
[396493902,1765003694586,-1602878.21833169,0.00036499,20]
[396493903,1765003694611,-30863.16874351,0.00036499,20]
[396493904,1765003694640,-151.39828509,0.00036499,30]
[396493905,1765003694666,-500.0,0.00036499,120]
[396493906,1765003694692,-3000.0,0.00036499,120]
[396493907,1765003694719,-526.67632,0.00036499,120]
[396493908,1765003694743,-2000.0,0.00036499,30]
[396493909,1765003694767,-2022.9,0.00036499,30]
[396493910,1765003694793,-1882.05,0.00036499,120]
[396493911,1765003694819,-1882.05,0.00036499,120]
[396493912,1765003694845,-1882.05,0.00036499,120]
[396493913,1765003694870,-1882.05,0.00036499,120]
[396493914,1765003694896,-1882.05,0.00036499,120]
[396493915,1765003694923,-1882.05,0.00036499,120]
[396493916,1765003694949,-1882.05,0.00036499,120]
[396493917,1765003694975,-1882.05,0.00036499,120]
[396493918,1765003695001,-1882.05,0.00036499,120]
[396493919,1765003695027,-1882.05,0.00036499,120]
[396493920,1765003695051,-1882.05,0.00036499,120]
[396493921,1765003695078,-1882.05,0.00036499,120]
[396493922,1765003695103,-1882.05,0.00036499,120]
[396493923,1765003695130,-1882.05,0.00036499,120]
[396493924,1765003695157,-1882.05,0.00036499,120]
[396493925,1765003695182,-1882.05,0.00036499,120]
[396493926,1765003695209,-1882.05,0.00036499,120]
[396493927,1765003695235,-1882.05,0.00036499,120]
[396493928,1765003695260,-1882.05,0.00036499,120]
[396493929,1765003695286,-1882.05,0.00036499,120]
[396493930,1765003695313,-1882.05,0.00036499,120]
[396493931,1765003695338,-1882.05,0.00036499,120]
[396493932,1765003695362,-1882.05,0.00036499,120]
[396493933,1765003695385,-1882.27191725,0.00036499,120]
[396493934,1765003695407,-500.0,0.00036499,31]
[396493935,1765003695430,-387538.87,0.00036499,30]
[396493936,1765003695453,-1857.64365361,0.00036499,120]
[396493937,1765003695476,-1006.52610868,0.00036499,120]
[396493938,1765003695498,-490.41157115,0.00036499,120]
[396493939,1765003695521,-1034.00601403,0.00036499,120]
[396493940,1765003695543,-286.32789971,0.00036499,120]
[396493941,1765003695566,-929.02559884,0.00036499,30]
[396493942,1765003695591,-1626.07441128,0.00036499,30]
[396493943,1765003695616,-357.28380795,0.00036499,120]
[396493944,1765003695642,-814.09655674,0.00036499,120]
[396493945,1765003695667,-1003.82777981,0.00036499,120]
[396493946,1765003695691,-377.87482869,0.00036499,60]
[396493947,1765003695716,-953.22454612,0.00036499,120]
[396493948,1765003695739,-336.96849217,0.00036499,120]
[396493949,1765003695762,-921.45336506,0.00036499,60]
[396493950,1765003695784,-174.59821,0.00036499,66]
[396493951,1765003695807,-400.8546022,0.00036499,120]
[396493952,1765003695831,-15486.44307764,0.00036499,20]
[396493953,1765003695853,-908.7932682,0.00036499,30]
[396493954,1765003695876,-399.36862476,0.00036499,30]
[396493955,1765003695899,-240.82074905,0.00036499,120]
[396493956,1765003695924,-220.09582531,0.00036499,30]
[396493957,1765003695949,-251.94626097,0.00036499,120]
[396493958,1765003695973,-558.68899154,0.00036499,30]
[396493959,1765003695999,-1052.97099657,0.00036499,120]
[396493960,1765003696024,-576.99244159,0.00036499,120]
[396493961,1765003696050,-1774.31554946,0.00036499,30]
[396493962,1765003696075,-200.0,0.00036499,120]
[396493963,1765003696098,-1048.58154074,0.00036499,120]
[396493964,1765003696122,-477.08339592,0.00036499,30]
[396493965,1765003696149,-981.12339956,0.00036499,120]
[396493966,1765003696174,-393.60067847,0.00036499,30]
[396493967,1765003696199,-1223.39658165,0.00036499,30]
[396493968,1765003696224,-443.49256909,0.00036499,120]
[396493969,1765003696383,-1915.15837516,0.00036499,120]
[396493970,1765003696408,-224.6161688,0.00036499,120]
[396493971,1765003696431,-329.56063528,0.00036499,120]
[396493972,1765003696454,-598.52235919,0.00036499,120]
[396493973,1765003696476,-566.85259962,0.00036499,120]
[396493974,1765003696499,-2415.66632462,0.00036499,60]
[396493975,1765003696522,-498.23823159,0.00036499,60]
[396493976,1765003696544,-205.07468998,0.00036499,120]
[396493977,1765003696570,-169.01235054,0.00036499,120]
[396493978,1765003696592,-2027.15421632,0.00036499,30]
[396493979,1765003696614,-577.23535763,0.00036499,60]
[396493980,1765003696636,-552.49054491,0.00036499,120]
[396493981,1765003696659,-330.70505005,0.00036499,30]
[396493982,1765003696681,-626.21412911,0.00036499,120]
[396493983,1765003696704,-313.07420076,0.00036499,120]
[396493984,1765003696727,-357.79406129,0.00036499,120]
[396493985,1765003696750,-1014.22586012,0.00036499,30]
[396493986,1765003696773,-367.80812191,0.00036499,120]
[396493987,1765003696796,-1069.25770995,0.00036499,120]
[396493988,1765003696819,-778.24528648,0.00036499,60]
[396493989,1765003696843,-177.4786349,0.00036499,120]
[396493990,1765003696866,-435.86652183,0.00036499,120]
[396493991,1765003696890,-507.7748458,0.00036499,120]